Cogmind - Beta 16 @@@ ROGUE MODE // 2026.01.05 @ 20:28:04 Player: PE-P51 Result: Destroyed by G-47 Trooper with Particle Gun Performance ------------- Evolutions (0) 0 Regions Visited (2) 400 Robots Destroyed (24) 120 Value Destroyed (539) 539 Prototype IDs (0) 0 Alien Tech Used (0) 0 Bonus (-15) -15 TOTAL SCORE: 1044 Bonus ------- Friendly Fire -15 Cogmind --------- Core Integrity 0/250 Matter 296/300 Energy 200/200 System Corruption 0% Temperature Cool (9) Movement Treading (160) Location -10/Subcaves Parts ------- > --- POWER (1) -------- Subdweller Power Source > --- PROPULSION (2) --- Light Treads Spiked Treads > --- UTILITY (2) ------ Scrap Shield > --- WEAPON (2) ------- Subdweller Machine Gun Subdweller Machine Gun > --- INVENTORY (5) ---- Light Treads Light Treads Hacking Suite Light Assault Rifle Scrap Shield Fragment (49) Peak State ------------ > --- POWER ------------ Subdweller Power Source > --- PROPULSION ------- Light Treads Spiked Treads > --- UTILITY ---------- Scrap Shield > --- WEAPON ----------- Subdweller Machine Gun Subdweller Machine Gun > --- INVENTORY -------- Light Treads Light Treads Hacking Suite Light Assault Rifle Scrap Shield Fragment [Rating: 13] Favorites ----------- Power Light Ion Engine Engine Light Ion Engine Propulsion Light Treads Treads Light Treads Leg Aluminum Leg Wheel Subdweller Monowheel Utility Huge Storage Unit Storage Huge Storage Unit Protection Light Armor Plating Weapon Subdweller Machine Gun Energy Gun EM Pulse Gun Ballistic Gun Subdweller Machine Gun Ballistic Cannon Light Cannon Launcher Grenade Launcher Build | -11 -10 -10 ------- Run | Yrd Mat Sub Slots Evolved . | . . . Power . | . . . Propulsion . | . . . Utility . | . . . Weapon . | . . . Parts Attached 23 | . 13 10 Power 3 | . . 3 Engine 3 | . . 3 Core . | . . . Reactor . | . . . Propulsion 7 | . 5 2 Treads 4 | . 2 2 Leg 2 | . 2 . Wheel 1 | . 1 . Hover . | . . . Flight . | . . . Utility 5 | . 2 3 Device . | . . . Storage 1 | . 1 . Processor . | . . . Hackware . | . . . Protection 4 | . 1 3 Artifact . | . . . Weapon 8 | . 6 2 Energy Gun . | . . . Energy Cannon . | . . . Ballistic Gun 4 | . 2 2 Ballistic Cannon 1 | . 1 . Launcher 3 | . 3 . Special Weapon . | . . . Impact Weapon . | . . . Slashing Weapon . | . . . Piercing Weapon . | . . . Special Melee Weapon . | . . . Unidentified Prototypes . | . . . Parts Lost 4 | . 1 3 Power 1 | . . 1 Propulsion . | . . . Utility 1 | . . 1 Weapon 2 | . 1 1 Highest Loss Streak 3 | . 1 3 To Critical Strikes . | . . . Average Backups 12 | . 13 5 Power 1 | . 1 . Propulsion 5 | . 5 2 Utility 2 | . 2 1 Weapon 2 | . 2 1 Tool/Special . | . . . Unused Backups 23 | . 6 17 Power 4 | . 1 3 Propulsion 8 | . 2 6 Utility 7 | . 2 5 Weapon 3 | . 1 2 Tool/Special 1 | . . 1 Average Slot Usage (%) 93 | . 96 77 Engine 13 | . 14 11 Treads 17 | . 15 28 Leg 4 | . 5 . Wheel 5 | . 6 . Storage 18 | . 21 1 Protection 5 | . 4 12 Energy Gun 3 | . 4 . Ballistic Gun 11 | . 11 11 Ballistic Cannon 8 | . 7 11 Launcher 3 | . 4 . Peak Build Rating 13 | . 12 13 Average Rating 9 | . 9 9 On Entrance 7 | 6 6 11 Avg Prop Armor Cover (%) 9 | . 9 . Naked Turns . | . . . Heaviest Build 95 | 12 95 93 Greatest Support 40 | 20 40 40 Greatest Overweight (x) 4 | . 4 2 Average Overweight (x) 2 | . 2 . Largest Inventory Capacity 25 | . 25 25 Average Capacity 19 | . 21 6 Most Carried 25 | . 25 24 Average Carried 14 | . 15 6 Final Capacity 25 | 8 25 5 Final Carried 24 | 6 24 5 Class Distribution -------------------- 96% | Mutant 3% | Subdweller-Mutant Dominant Class ---------------- Mutant | -10/Materials Mutant | -10/Subcaves Resources | -11 -10 -10 ----------- Run | Yrd Mat Sub Matter Collected 723 | 177 364 182 Remotely . | . . . Salvage Created 483 | . 385 98 Parts 49 | . 43 6 Haulers Intercepted 1 | . 1 . Recyclers Shooed 1 | . 1 . Parts Field Recycled . | . . . Retrieved Matter . | . . . Parts Self-Destructed 3 | . . 3 Prevented . | . . . Parts Restored . | . . . Kills | -11 -10 -10 ------- Run | Yrd Mat Sub Combat Hostiles Destroyed 19 | . 16 3 Guns 5 | . 4 1 Cannons 5 | . 3 2 AOE 9 | . 9 . Classes Destroyed 8 | . 8 . Worker 1 | . 1 . Builder 1 | . 1 . Hauler 1 | . 1 . Operator 1 | . 1 . Watcher 1 | . 1 . Swarmer 9 | . 9 . Grunt 4 | . 4 . Subdweller 6 | . 3 3 Best Kill Streak 6 | . 6 2 Combat Bots Only 5 | . 5 2 Max Kills in Single Turn 2 | . 2 1 Gunslinging . | . . . Exploded 2 | . 2 . Melee . | . . . Uniques/NPCs Destroyed . | . . . Combat | -11 -10 -10 -------- Run | Yrd Mat Sub Hostile Shots Fired 117 | . 74 43 Missed 37 | . 26 11 Hits 80 | . 48 32 Projectile 80 | . 48 32 Critical Strikes 2 | . . 2 Damage Taken 1291 | . 587 704 Core 258 | . 119 139 Absorbed by Shields . | . . . Regen/Repaired (Parts) 112 | . 112 . Core Remaining (%) 100 | 100 . . Volleys Fired 56 | . 40 16 Largest 2 | . 2 2 Hottest 80 | . 80 60 Shots Fired 83 | . 60 23 Gun 42 | . 34 8 Cannon 26 | . 11 15 Launcher 15 | . 15 . Special . | . . . Kinetic 50 | . 27 23 Thermal . | . . . Explosive 15 | . 15 . Electromagnetic 18 | . 18 . Robot Hit Streak 11 | . 11 6 Robot Miss Streak 5 | . 5 1 Penetration Max . | . . . Secondary Targets . | . . . Shots Hit Robots 54 | . 37 17 Core Hits 36 | . 33 3 Critical Kills . | . . . Critical Parts Destroyed . | . . . Critical Strikes 3 | . 2 1 Destroy 1 | . . 1 Blast 1 | . 1 . Corrupt 1 | . 1 . Melee Attacks . | . . . Impact . | . . . Slashing . | . . . Piercing . | . . . Sneak Attacks . | . . . Combat Hostiles . | . . . Follow-up Attacks . | . . . Damage Inflicted 1631 | . 1300 331 Guns 451 | . 307 144 Cannons 291 | . 104 187 Explosions 875 | . 875 . Melee . | . . . Ramming 14 | . 14 . Kinetic 560 | . 229 331 Thermal . | . . . Explosive 875 | . 875 . Electromagnetic 182 | . 182 . Impact . | . . . Slashing . | . . . Piercing . | . . . Highest Corruption . | . . . Average Corruption . | . . . Corruption Purged . | . . . Corruption Blocked . | . . . Overload Shots . | . . . Overflow Damage 38 | . 38 . Projectiles . | . . . Explosions 38 | . 38 . Melee . | . . . Knockbacks 2 | . 1 1 Impact . | . . . Kinetic 2 | . 1 1 Secondary . | . . . Self-Inflicted Damage 54 | . 54 . Shots 4 | . 4 . Rammed . | . . . Targets Rammed 7 | . 7 . Kicked 7 | . 7 . Crushed . | . . . Highest Temperature 153 | . 153 . Average Temperature 39 | . 39 . Received Heat Transfer 195 | . 135 60 Siege Activations . | . . . Martial Activations . | . . . Shielding Activations . | . . . Robots Disrupted . | . . . Combat Hostiles . | . . . Robots Corrupted . | . . . Combat Hostiles . | . . . Parts Fried 1 | . 1 . Impact Corruptions . | . . . Robots Melted . | . . . Combat Hostiles . | . . . Parts Melted 1 | . 1 . Heat Transferred . | . . . Parts Sabotaged . | . . . Parts Stolen . | . . . Parts Stripped . | . . . Power Chain Reactions . | . . . Alert | -11 -10 -10 ------- Run | Yrd Mat Sub Maximum Alert Level . | . . . Low Security (%) 100 | . 100 . Level 1 . | . . . Level 2 . | . . . Level 3 . | . . . Level 4 . | . . . Level 5 . | . . . High Security . | . . . Max Security . | . . . Peak Influence 166 | . 166 . Initial . | . . . Average 43 | . 43 . Influence Increases 453 | . 453 . Destroy 0b10 Robot/C 260 | . 260 . Destroy 0b10 Robot/NC 25 | . 25 . Destroy Leader 44 | . 44 . Successful Hack 25 | . 25 . Disable Machine 30 | . 30 . Destroy Structure 54 | . 54 . Lose Combat Pursuer 15 | . 15 . Influence Decreases 453 | . 416 37 Entered New Map 18 | . . 18 Time Decay 425 | . 406 19 Lost Part 10 | . 10 . Squads Dispatched . | . . . Investigation . | . . . Extermination . | . . . Reinforcement . | . . . Assault . | . . . Garrison . | . . . Intercept . | . . . Searches Triggered . | . . . Construction Impeded . | . . . Haulers Reinforced . | . . . Active Scanning Responses . | . . . Cargo Convoy Interrupts . | . . . Stealth | -11 -10 -10 --------- Run | Yrd Mat Sub Distress Signals 1 | . 1 . Communications Jammed . | . . . Distress Signals . | . . . Times Spotted 40 | . 28 12 Peak Tracking Total 7 | . 7 5 Tactical Retreats 1 | . 1 . Traps | -11 -10 -10 ------- Run | Yrd Mat Sub Traps Triggered . | . . . Indirectly . | . . . Trap Hack Attempts . | . . . Triggered . | . . . Disarmed . | . . . Reprogrammed . | . . . Reused . | . . . Traps Extracted . | . . . Installed . | . . . Triggered . | . . . Machines | -11 -10 -10 ---------- Run | Yrd Mat Sub Machines Disabled 2 | . 2 . Max in Single Turn 1 | . 1 . Machines Repaired . | . . . Machines Dismantled . | . . . Machines Sabotaged . | . . . Overloaded Fab Kills . | . . . Hacking | -11 -10 -10 --------- Run | Yrd Mat Sub Machines Accessed 6 | . 6 . Terminals 4 | . 4 . Fabricators . | . . . Repair Stations 1 | . 1 . Recycling Units 1 | . 1 . Scanalyzers . | . . . Garrison Access . | . . . Total Hacks 18 | . 18 . Successful 9 | . 9 . Failed 9 | . 9 . Catastrophic . | . . . Database Lockouts . | . . . Manual 9 | . 9 . Terminals 13 | . 13 . Fabricators . | . . . Repair Stations 2 | . 2 . Recycling Units 3 | . 3 . Scanalyzers . | . . . Garrison Access . | . . . Terminal Hacks 3 | . 3 . Robot Analysis 1 | . 1 . Alert Level 1 | . 1 . Locate Traps 1 | . 1 . Fabricator Hacks . | . . . Repair Station Hacks 2 | . 2 . Scan Component 1 | . 1 . Repair 1 | . 1 . Recycling Unit Hacks 1 | . 1 . Retrieve Components 1 | . 1 . Scanalyzer . | . . . Garrison Access Hacks . | . . . Unauthorized Hacks 3 | . 3 . Terminals 2 | . 2 . Botnet 1 | . 1 . Skim 1 | . 1 . Fabricators . | . . . Repair Stations . | . . . Recycling Units 1 | . 1 . Mask 1 | . 1 . Scanalyzers . | . . . Garrison Access . | . . . Data Cores Recovered 1 | . 1 . Used . | . . . Hacking Detections 3 | . 3 . Full Trace Events . | . . . Feedback Events . | . . . Feedback Blocked . | . . . Robot Schematics Acquired . | . . . Robots Built . | . . . Authchips . | . . . Time . | . . . Total Robot Build Rating . | . . . Part Schematics Acquired . | . . . Parts Built . | . . . Authchips . | . . . Time . | . . . Total Part Build Rating . | . . . Part Studies Acquired . | . . . Parts Repaired 1 | . 1 . Time 26 | . 26 . Parts Recycled . | . . . Recycled Matter . | . . . Retrieved Matter . | . . . Retrieved Components 3 | . 3 . Parts Scanalyzed . | . . . Part Schematics Acquired . | . . . Parts Damaged . | . . . Bothacking | -11 -10 -10 ------------ Run | Yrd Mat Sub Used RIF Installer . | . . . Robots Hacked . | . . . Non-combat . | . . . Combat . | . . . Robot Hacks Applied . | . . . Relay Couplers Released . | . . . Fabnet Peak Effective % . | . . . Robots Rewired . | . . . Allies Hacked . | . . . Hacks Repelled . | . . . Allies | -11 -10 -10 -------- Run | Yrd Mat Sub Total Allies . | . . . Largest Group . | . . . Highest-Rated Group . | . . . Highest-Rated Ally . | . . . Total Orders . | . . . Ally Attacks . | . . . Total Damage . | . . . Kills . | . . . Allies Corrupted . | . . . Allies Melted . | . . . Intel | -11 -10 -10 ------- Run | Yrd Mat Sub Active Infowar (turns) . | . . . Robot Analysis Total 1 | . 1 . Derelict Logs Recovered 1 | . . 1 Drone Launches . | . . . Drone Recoveries . | . . . Exploration | -11 -10 -10 ------------- Run | Yrd Mat Sub Turns Passed 1934 | . 1638 296 Spaces Moved 958 | 1 817 140 Core . | . . . Treads 291 | . 151 140 Legs 178 | 1 177 . Wheels 489 | . 489 . Hover . | . . . Flight . | . . . Fastest Speed 120 | 120 120 160 Average Speed 173 | 120 175 163 Slowest Speed 480 | 120 480 320 Overloaded Moves . | . . . Propulsion Burnouts . | . . . Robots Hopped . | . . . Potential Cave-ins . | . . . Cave-ins Triggered . | . . . Exploration Rate (%) 34 | 1 96 7 Regions Visited 2 Branch Regions 1 Pre-discovered Areas . | . . . Known Exits Taken . | . . . Unknown Exits Taken 2 | 1 1 . Scrap Searched . | . . . Spaces Dug . | . . . Terrain Destroyed 54 | . 54 . Melee . | . . . Projectile 2 | . 2 . AOE 52 | . 52 . Terrain Rammed . | . . . Walls Destroyed . | . . . Machines Disabled . | . . . Actions | -11 -10 -10 --------- Run | Yrd Mat Sub Total 1155 | . 968 187 Wait 69 | . 57 12 Move 956 | . 816 140 Hop . | . . . Pick Up 25 | . 24 1 Fast Attach 6 | . 1 5 Attach 3 | . 3 . Detach . | . . . Swap 16 | . 11 5 Drop 17 | . 9 8 Fire 56 | . 40 16 Melee . | . . . Ram . | . . . Kick 7 | . 7 . Crush . | . . . Escape Stasis . | . . . Rewire . | . . . Trap . | . . . Miscellaneous . | . . . Route ------- -11/Scrapyard -10/Materials (discovered 6 exits: [*Mat x3] / [*Min x2] / [*Sub]) -10/Subcaves History --------- Turn | Location | Event 1 | -11/Scrapyard | Discovered new exit (range 0) 1 | -11/Scrapyard | Entered Materials 197 | -10/Materials | Discovered new exit (range 11) 262 | -10/Materials | Discovered new exit (range 15) 333 | -10/Materials | Build established: Mutant 445 | -10/Materials | Discovered new exit (range 7) 701 | -10/Materials | Derelicts attacked the area 812 | -10/Materials | Discovered new exit (range 8) 1085 | -10/Materials | Discovered new exit (range 12) 1171 | -10/Materials | Discovered new exit (range 12) 1538 | -10/Materials | Repaired Lgt. Cannon 1639 | -10/Materials | Entered Subcaves 1640 | -10/Subcaves | Approached by a straggling Scientist 1708 | -10/Subcaves | Learned 4 Materials zone layouts 1753 | -10/Subcaves | Ambushed by swarm of Subdwellers 1753 | -10/Subcaves | Ambushed by Subdwellers from Twisted Machinery 1753 | -10/Subcaves | Ambushed by Subdwellers from Twisted Machinery 1758 | -10/Subcaves | Core integrity fell below 50% 1763 | -10/Subcaves | Ambushed by Subdwellers from Twisted Machinery 1777 | -10/Subcaves | Core integrity fell below 20% 1809 | -10/Subcaves | Lost 3 parts (1p1u1w) 1935 | -10/Subcaves | Destroyed by G-47 Trooper with Particle Gun Last Messages --------------- 01800_ Acquired 38 matter. 01801_ Subatomizers dissect the Sub. Monowheel. 01806_ Acquired Propulsion Shielding. 01808_ Acquired 6 matter. 01814_ Subatomizers dissect the Sub. Monowheel. 01822_ Dropped Propulsion Shielding. 01823_ Acquired Scrap Shield. 01834_ Acquired Sub. Power Source. 01835_ Acquired 24 matter. 01839_ Subatomizers dissect the Sub. Optics. 01842_ Dropped Lgt. Treads. FP-99J(c): "I think it's somewhere northeast of here" 01843_ Acquired 10 matter. 01865_ Subatomizers dissect the Sub. Optics. 01872_ Acquired Sub. Machine Gun. 01874_ Acquired 3 matter. 01883_ Acquired Sub. Machine Gun. 01886_ Acquired 17 matter. 01892_ Subatomizers dissect the Sub. Optics. FP-99J(c): "I think it's somewhere northeast of here" Map ----- +----------------------------------------------------+ | ?????????????????????????????????????????????????? | | ?????????????????????????????????????????????????? | | ?????????????????????????????????????????????????? | | ?????????????????????????????????????????????????? | | ?????????????????????????????????????????????????? | | ?????????????????????????????????????????????????? | | ?????????????????????????????????????????????????? | | ?????????????????????????????????????????????????? | | ?????????????????????????????????????????????????? | | ?????????????????????????????????????????????????? | | ?????????????????????????????????????????????????? | | ???????????????????#####????? ???????????????????? | | ??????????????????## #???? #???????????????????? | | ?????????????????## #???? #???????????????????? | | ????????????????## #???? #???????????????????? | | ?????##??######## #???? #???????????????????? | | ???"""" ## ## #??? #???????????????????? | | ???""" %[ #??? ######??????????????? | | ???"" %%!/** #??? ???????????????? | | ? ## # ##=%%! &! #??# ????????????????? | | ????????### ##%!%=]& ### ?????????????????? | | ???????## &&[! ### #??????????????????? | | ??????## [*% =##?# #??????????????????? | | ??????# # ## ##=*="#?# #??????????????????? | | ??????# #######%*%%### ### #?????????????? | | ?????## #????# c @ #?????????????? | | ###### ######% !;# h## #????????????? | | ## ### ##; ##?? ## g g#???????????? | | ##### ##; ##????##????? ?????????? | | # #### ## ##?????????????????????????? | | ## ## #??????????????????????????? | | ?## #### ### #??????????????????????????? | | ??# ##??#####?# #?????????????????????????? | | ??###?????????##########?????????????????????????? | | ?????????????????????????????????????????????????? | | ?????????????????????????????????????????????????? | | ?????????????????????????????????????????????????? | | ?????????????????????????????????????????????????? | | ?????????????????????????????????????????????????? | | ?????????????????????????????????????????????????? | | ?????????????????????????????????????????????????? | | ?????????????????????????????????????????????????? | | ?????????????????????????????????????????????????? | | ?????????????????????????????????????????????????? | | ?????????????????????????????????????????????????? | | ?????????????????????????????????????????????????? | | ?????????????????????????????????????????????????? | | ?????????????????????????????????????????????????? | | | | | +----------------------------------------------------+ Best States ------------- Heat Dissipation 25 Energy Generation 15 Energy Capacity 250 Matter Stores 300 Matter Capacity 300 Sight Range 16 Terrain Scan Density 10 Armor Coverage 800 Propulsion Shielding 33 Evasion (%) 55 Recoil Reduction 2 Item Schematics ----------------- None Robot Schematics ------------------ None Fabricated ------------ Nothing Repaired ---------- Lgt. Cannon | 6% | -10/Materials Studied --------- None Alien Tech Used ----------------- None Achievements -------------- None Challenges ------------ None Game ------ Seed PlatingZipDriver Manual? 0 Play Time 00:14:43 Cumulative 268.0 hours Start 2026.01.05 @ 19:41:45 End 2026.01.05 @ 20:28:04 Sessions 3 Manual Loads 0 Difficulty Rogue Special Mode None Game No. 344 Rogue 343 Adventurer 1 Explorer 0 Win Type - Total 2 Types 1/0/0/1/0/0/0/0/0/0 Lore% 73 Gallery% 67 Achievement% 56 Wizard Run 0 Options --------- Layout 0 ASCII 0 Keyboard 0 Movement Numpad Keybinds 0 Fullscreen 1 Font 24/Smallcaps Map View 76x50 Zoom Use 0% Tactical HUD 1 Map Filters NONE Filters NONE Steam 1 RUN: 079adcaf-3758-40d5-8958-f92002e5de2d